Cogmind - Beta 14 @@@ ROGUE MODE // 2024.09.25 @ 15:29:16 // Winter2019/RPGLIKE Player: Necroptosis Result: Self-destructed Performance ------------- Evolutions (2) 1000 Regions Visited (5) 1000 Robots Destroyed (61) 305 Value Destroyed (1884) 1884 Prototype IDs (31) 620 Alien Tech Used (0) 0 Bonus (131) 131 TOTAL SCORE: 4940 Bonus ------- Aligned with FarCom 300 Friendly Fire -169 Cogmind --------- Core Integrity 136/1200 Matter 300/300 Energy 290/290 System Corruption 0% Temperature Cool (0) Movement Hovering (136) Ox1 Location -8/Materials Parts ------- > --- POWER (1) -------- Reinforced Deuterium Engine > --- PROPULSION (3) --- Armored Treads Improved Hover Unit Improved Hover Unit > --- UTILITY (4) ------ Structural Scanner 0b10 Alert Chip Advanced Targeting Computer Transmission Jammer > --- WEAPON (1) ------- Heavy Particle Cannon > --- INVENTORY (2) ---- Ion Cannon Rocket Launcher Peak State ------------ > --- POWER ------------ Reinforced Deuterium Engine > --- PROPULSION ------- Armored Treads Improved Hover Unit Improved Hover Unit > --- UTILITY ---------- Structural Scanner 0b10 Alert Chip Advanced Targeting Computer Transmission Jammer > --- WEAPON ----------- Heavy Particle Cannon > --- INVENTORY -------- Ion Cannon Rocket Launcher [Rating: 28] Favorites ----------- Power Ion Engine Engine Ion Engine Propulsion Improved Hover Unit Treads Light Treads Wheel Compact Wheel Hover Unit Improved Hover Unit Utility Structural Scanner Device Structural Scanner Processor 0b10 Alert Chip Hackware Hacking Suite Weapon Particle Cannon Energy Gun Medium Laser Energy Cannon Particle Cannon Launcher Rocket Launcher Build | -11 -10 -10 -10 -9 -8 ------- Run | Yrd Mat Min Exi Min Mat Slots Evolved 5 | 4 . . . . 1 Power . | . . . . . . Propulsion 2 | 2 . . . . . Utility 3 | 2 . . . . 1 Weapon . | . . . . . . Parts Attached 27 | 6 9 . 1 . 11 Power 3 | 1 1 . . . 1 Engine 3 | 1 1 . . . 1 Core . | . . . . . . Reactor . | . . . . . . Propulsion 11 | 3 4 . . . 4 Treads 3 | 2 . . . . 1 Leg . | . . . . . . Wheel 2 | 1 1 . . . . Hover 6 | . 3 . . . 3 Flight . | . . . . . . Utility 7 | 1 3 . 1 . 2 Device 4 | 1 2 . . . 1 Storage . | . . . . . . Processor 2 | . . . 1 . 1 Hackware 1 | . 1 . . . . Protection . | . . . . . . Artifact . | . . . . . . Weapon 6 | 1 1 . . . 4 Energy Gun 1 | 1 . . . . . Energy Cannon 4 | . 1 . . . 3 Ballistic Gun . | . . . . . . Ballistic Cannon . | . . . . . . Launcher 1 | . . . . . 1 Special Weapon . | . . . . . . Impact Weapon . | . . . . . . Slashing Weapon . | . . . . . . Piercing Weapon . | . . . . . . Special Melee Weapon . | . . . . . . Unidentified Prototypes . | . . . . . . Parts Lost 3 | . . . . . 3 Power 1 | . . . . . 1 Propulsion 2 | . . . . . 2 Utility . | . . . . . . Weapon . | . . . . . . Highest Loss Streak 2 | . . . . . 2 To Critical Strikes . | . . . . . . Average Slot Usage (%) 97 | . 99 100 100 100 95 Engine 11 | . 12 12 12 12 10 Treads 3 | . 7 . . . . Wheel 1 | . 3 . . . . Hover 28 | . 26 37 37 37 28 Device 23 | . 27 25 19 12 22 Processor 8 | . . . 5 12 18 Hackware 7 | . 8 12 12 12 3 Energy Cannon 11 | . 11 12 12 12 10 Peak Build Rating 28 | 6 15 15 19 19 28 Average Rating 17 | 4 13 15 16 19 22 On Entrance 12 | . 6 15 15 19 19 Naked Turns . | . . . . . . Heaviest Build 23 | 6 12 12 12 10 23 Greatest Support 40 | 40 21 21 21 26 26 Greatest Overweight (x) 1 | . 1 . . . 1 Average Overweight (x) . | . . . . . . Largest Inventory Capacity 2 | . 2 2 2 2 2 Average Capacity 1 | . . 2 2 2 2 Most Carried 2 | . 2 2 2 2 2 Average Carried 1 | . . 2 2 2 2 Final Capacity 2 | . 2 2 2 2 2 Final Carried 2 | . 2 2 2 2 2 Class Distribution -------------------- 37% | Hacker-Mutant 23% | Infiltrator-Scout 21% | Hacker-Scout 15% | Mutant Dominant Class ---------------- Hacker-Mutant | -10/Materials Hacker-Mutant | -10/Mines Hacker-Mutant | -10/Exiles Hacker-Scout | -9/Mines Infiltrator-Scout | -8/Materials Resources | -11 -10 -10 -10 -9 -8 ----------- Run | Yrd Mat Min Exi Min Mat Matter Collected 578 | 235 157 . . 10 176 Remotely . | . . . . . . Salvage Created 2168 | 29 601 . . 44 1494 Parts 138 | 5 41 . . 5 87 Haulers Intercepted 5 | . 2 . . . 3 Recyclers Shooed . | . . . . . . Parts Field Recycled . | . . . . . . Retrieved Matter . | . . . . . . Parts Self-Destructed . | . . . . . . Prevented . | . . . . . . Kills | -11 -10 -10 -10 -9 -8 ------- Run | Yrd Mat Min Exi Min Mat Combat Hostiles Destroyed 42 | . 13 . . 4 25 Cannons 38 | . 13 . . 4 21 AOE 3 | . . . . . 3 Classes Destroyed 11 | 1 5 . . . 5 Builder 1 | . . . . . 1 Tunneler 2 | 2 . . . . . Hauler 5 | . 2 . . . 3 Operator 2 | . 2 . . . . Watcher 8 | . 3 . . . 5 Swarmer 7 | . 3 . . 4 . Grunt 23 | . 10 . . . 13 Brawler 1 | . . . . . 1 Sentry 8 | . . . . . 8 Hunter 2 | . . . . . 2 Heavy 1 | . . . . . 1 Thug 1 | . . . . 1 . Best Kill Streak 5 | 2 4 . . 4 5 Combat Bots Only 4 | . 4 . . 4 4 Max Kills in Single Turn 3 | 1 1 . . 1 3 Gunslinging . | . . . . . . Exploded 3 | . . . . . 3 Melee . | . . . . . . Uniques/NPCs Destroyed . | . . . . . . Combat | -11 -10 -10 -10 -9 -8 -------- Run | Yrd Mat Min Exi Min Mat Hostile Shots Fired 249 | . 67 . . 15 167 Missed 91 | . 24 . . 7 60 Damage Taken 2354 | . 377 . . 59 1918 Core 1940 | . 305 . . 49 1586 Absorbed by Shields 64 | . 64 . . . . Redirected to Core 1418 | . 212 . . 26 1180 Ignored by Resistances 62 | . . . . . 62 Core Remaining (%) 100 | 100 . . . 100 . Volleys Fired 259 | 10 93 . . 15 141 Largest 1 | 1 1 . . 1 1 Hottest 75 | 50 68 . . 68 75 Shots Fired 259 | 10 93 . . 15 141 Gun 10 | 10 . . . . . Cannon 243 | . 93 . . 15 135 Launcher 6 | . . . . . 6 Special . | . . . . . . Kinetic . | . . . . . . Thermal 253 | 10 93 . . 15 135 Explosive 6 | . . . . . 6 Electromagnetic . | . . . . . . Robot Hit Streak 12 | 1 7 . . 4 12 Robot Miss Streak 8 | 3 3 . . 8 5 Penetration Max . | . . . . . . Secondary Targets . | . . . . . . Shots Hit Robots 169 | 3 61 . . 6 99 Core Hits 80 | 2 23 . . 6 49 Critical Kills 1 | . . . . . 1 Critical Parts Destroyed . | . . . . . . Critical Strikes 1 | . . . . . 1 Meltdown 1 | . . . . . 1 Melee Attacks . | . . . . . . Impact . | . . . . . . Slashing . | . . . . . . Piercing . | . . . . . . Sneak Attacks . | . . . . . . Combat Hostiles . | . . . . . . Follow-up Attacks . | . . . . . . Damage Inflicted 4495 | 49 1288 . . 227 2931 Guns 49 | 49 . . . . . Cannons 4023 | . 1288 . . 227 2508 Explosions 423 | . . . . . 423 Melee . | . . . . . . Ramming . | . . . . . . Kinetic . | . . . . . . Thermal 4072 | 49 1288 . . 227 2508 Explosive 423 | . . . . . 423 Electromagnetic . | . . . . . . Impact . | . . . . . . Slashing . | . . . . . . Piercing . | . . . . . . Highest Corruption . | . . . . . . Average Corruption . | . . . . . . Corruption Purged . | . . . . . . Corruption Blocked . | . . . . . . Overload Shots . | . . . . . . Overflow Damage 19 | . 1 . . 8 10 Projectiles 15 | . 1 . . 8 6 Explosions 4 | . . . . . 4 Melee . | . . . . . . Knockbacks . | . . . . . . Impact . | . . . . . . Kinetic . | . . . . . . Secondary . | . . . . . . Self-Inflicted Damage 26 | . . . . . 26 Shots 1 | . . . . . 1 Rammed . | . . . . . . Targets Rammed . | . . . . . . Kicked . | . . . . . . Crushed . | . . . . . . Highest Temperature 412 | 40 412 . . . 14 Average Temperature 135 | 20 147 . . . 4 Received Heat Transfer 695 | . 155 . . . 540 Effects 3 | . 3 . . . . Shutdowns 1 | . 1 . . . . Matter Decay 1 | . 1 . . . . Damage (minor) 1 | . 1 . . . . Siege Activations . | . . . . . . Robots Corrupted . | . . . . . . Combat Hostiles . | . . . . . . Parts Fried . | . . . . . . Impact Corruptions . | . . . . . . Robots Melted 1 | . . . . . 1 Combat Hostiles 1 | . . . . . 1 Parts Melted 14 | . 4 . . 2 8 Heat Transferred 6438 | 148 2331 . . 370 3589 Parts Sabotaged . | . . . . . . Parts Stolen . | . . . . . . Parts Stripped . | . . . . . . Power Chain Reactions . | . . . . . . Alert | -11 -10 -10 -10 -9 -8 ------- Run | Yrd Mat Min Exi Min Mat Peak Influence 330 | 10 222 63 . 80 330 Initial 63 | . 6 63 . . 31 Average 120 | 2 97 63 . 73 170 Maximum Alert Level 1 | . 1 . . . 1 Low Security (%) 81 | 100 97 100 . 100 55 Level 1 18 | . 2 . . . 44 Level 2 . | . . . . . . Level 3 . | . . . . . . Level 4 . | . . . . . . Level 5 . | . . . . . . High Security . | . . . . . . Max Security . | . . . . . . Squads Dispatched 4 | . 2 . . . 2 Investigation 2 | . 1 . . . 1 Extermination . | . . . . . . Reinforcement 2 | . 1 . . . 1 Assault . | . . . . . . Garrison . | . . . . . . Intercept . | . . . . . . Searches Triggered . | . . . . . . Construction Impeded . | . . . . . . Haulers Reinforced . | . . . . . . Active Scanning Responses . | . . . . . . Cargo Convoy Interrupts . | . . . . . . Stealth | -11 -10 -10 -10 -9 -8 --------- Run | Yrd Mat Min Exi Min Mat Distress Signals 2 | . 1 . . . 1 Communications Jammed 33 | . . . . . 33 Distress Signals 33 | . . . . . 33 Times Spotted 60 | . 22 . . 4 34 Peak Tracking Total 5 | . 4 . . 3 5 Tactical Retreats 4 | . 1 . . . 3 Traps | -11 -10 -10 -10 -9 -8 ------- Run | Yrd Mat Min Exi Min Mat Traps Triggered 1 | . . . . . 1 Indirectly . | . . . . . . Trap Hack Attempts . | . . . . . . Triggered . | . . . . . . Disarmed . | . . . . . . Reprogrammed . | . . . . . . Reused . | . . . . . . Traps Extracted . | . . . . . . Installed . | . . . . . . Triggered . | . . . . . . Machines | -11 -10 -10 -10 -9 -8 ---------- Run | Yrd Mat Min Exi Min Mat Machines Disabled 2 | . 1 . . . 1 Max in Single Turn 1 | . 1 . . . 1 Garrison Access 1 | . . . . . 1 Machines Repaired . | . . . . . . Machines Dismantled . | . . . . . . Machines Sabotaged . | . . . . . . Overloaded Fab Kills . | . . . . . . Hacking | -11 -10 -10 -10 -9 -8 --------- Run | Yrd Mat Min Exi Min Mat Machines Accessed 18 | . 6 . 1 . 11 Terminals 16 | . 6 . . . 10 Fabricators . | . . . . . . Repair Stations . | . . . . . . Recycling Units . | . . . . . . Scanalyzers . | . . . . . . Garrison Access 1 | . . . . . 1 Total Hacks 63 | . 23 . 1 . 39 Successful 37 | . 16 . 1 . 20 Failed 25 | . 7 . . . 18 Catastrophic 3 | . . . . . 3 Database Lockouts 1 | . . . . . 1 Manual 54 | . 19 . 1 . 34 Terminals 60 | . 23 . . . 37 Fabricators . | . . . . . . Repair Stations . | . . . . . . Recycling Units . | . . . . . . Scanalyzers . | . . . . . . Garrison Access 2 | . . . . . 2 Terminal Hacks 16 | . 7 . 1 . 8 Prototype ID Bank 6 | . 4 . . . 2 Level Access Points 2 | . . . . . 2 Branch Access Points 1 | . . . . . 1 Terminal Index 1 | . 1 . . . . Alert Level 1 | . 1 . . . . Unreport Threat 4 | . 1 . . . 3 Derelict Proto ID Bank 1 | . . . 1 . . Fabricator Hacks . | . . . . . . Repair Station Hacks . | . . . . . . Recycling Unit Hacks . | . . . . . . Scanalyzer . | . . . . . . Garrison Access Hacks 1 | . . . . . 1 Seal Access 1 | . . . . . 1 Unauthorized Hacks 20 | . 9 . . . 11 Terminals 20 | . 9 . . . 11 Botnet 6 | . 2 . . . 4 Operators 1 | . . . . . 1 Skim 12 | . 6 . . . 6 Search 1 | . 1 . . . . Fabricators . | . . . . . . Repair Stations . | . . . . . . Recycling Units . | . . . . . . Scanalyzers . | . . . . . . Garrison Access . | . . . . . . Data Cores Recovered 1 | . 1 . . . . Used . | . . . . . . Hacking Detections 15 | . 6 . . . 9 Full Trace Events 3 | . . . . . 3 Feedback Events . | . . . . . . Feedback Blocked . | . . . . . . Robot Schematics Acquired . | . . . . . . Robots Built . | . . . . . . Authchips . | . . . . . . Time . | . . . . . . Total Robot Build Rating . | . . . . . . Part Schematics Acquired . | . . . . . . Parts Built . | . . . . . . Authchips . | . . . . . . Time . | . . . . . . Total Part Build Rating . | . . . . . . Parts Repaired . | . . . . . . Time . | . . . . . . Parts Recycled . | . . . . . . Recycled Matter . | . . . . . . Retrieved Matter . | . . . . . . Retrieved Components . | . . . . . . Parts Scanalyzed . | . . . . . . Part Schematics Acquired . | . . . . . . Parts Damaged . | . . . . . . Bothacking | -11 -10 -10 -10 -9 -8 ------------ Run | Yrd Mat Min Exi Min Mat Used RIF Installer . | . . . . . . Robots Hacked . | . . . . . . Non-combat . | . . . . . . Combat . | . . . . . . Robot Hacks Applied . | . . . . . . Relay Couplers Released . | . . . . . . Fabnet Peak Effective % . | . . . . . . Robots Rewired . | . . . . . . Allies Hacked . | . . . . . . Hacks Repelled . | . . . . . . Allies | -11 -10 -10 -10 -9 -8 -------- Run | Yrd Mat Min Exi Min Mat Total Allies 2 | . . . . 2 . Largest Group 2 | . . . . 2 . Highest-Rated Group 45 | . . . . 45 . Highest-Rated Ally 31 | . . . . 31 . Total Orders . | . . . . . . Ally Attacks 7 | . . . . 7 . Total Damage 64 | . . . . 64 . Kills . | . . . . . . Allies Corrupted . | . . . . . . Allies Melted . | . . . . . . Intel | -11 -10 -10 -10 -9 -8 ------- Run | Yrd Mat Min Exi Min Mat Robot Analysis Total . | . . . . . . Derelict Logs Recovered 1 | . . . . 1 . Drone Launches . | . . . . . . Drone Recoveries . | . . . . . . Exploration | -11 -10 -10 -10 -9 -8 ------------- Run | Yrd Mat Min Exi Min Mat Turns Passed 2527 | 82 1110 40 110 218 967 Spaces Moved 2184 | 52 768 45 207 260 852 Core 6 | 6 . . . . . Treads 7 | 7 . . . . . Legs . | . . . . . . Wheels 306 | 39 267 . . . . Hover 1865 | . 501 45 207 260 852 Flight . | . . . . . . Fastest Speed 50 | 50 52 52 52 52 52 Average Speed 60 | 102 67 52 52 52 55 Slowest Speed 160 | 160 120 52 52 52 136 Overloaded Moves . | . . . . . . Propulsion Burnouts . | . . . . . . Robots Hopped . | . . . . . . Cave-ins Triggered . | . . . . . . Exploration Rate (%) 53 | 4 91 17 60 66 85 Regions Visited 5 Branch Regions 3 Pre-discovered Areas 4 | . 2 . . . 2 Known Exits Taken 1 | . . . 1 . . Unknown Exits Taken 4 | 1 1 1 . 1 . Scrap Searched . | . . . . . . Spaces Dug 13 | . . . . . 13 Terrain Destroyed 81 | . . . . . 81 Melee . | . . . . . . Projectile 18 | . . . . . 18 AOE 63 | . . . . . 63 Terrain Rammed . | . . . . . . Walls Destroyed . | . . . . . . Machines Disabled . | . . . . . . Actions | -11 -10 -10 -10 -9 -8 --------- Run | Yrd Mat Min Exi Min Mat Total 3128 | 67 1264 61 208 327 1201 Wait 604 | . 372 17 . 46 169 Move 2179 | 51 767 44 206 259 852 Hop . | . . . . . . Pick Up 2 | . 2 . . . . Fast Attach 20 | 6 7 . 1 . 6 Attach . | . . . . . . Detach . | . . . . . . Swap 7 | . 2 . . . 5 Drop 12 | . 7 . 1 . 4 Fire 259 | 10 93 . . 15 141 Melee . | . . . . . . Ram . | . . . . . . Kick . | . . . . . . Crush . | . . . . . . Escape Stasis . | . . . . . . Rewire . | . . . . . . Trap . | . . . . . . Miscellaneous 45 | . 14 . . 7 24 Route ------- -11/Scrapyard -10/Materials (discovered 4 exits: [*Mat x3] / [*Min]) -10/Mines -10/Exiles (discovered 2 exits: *Min x2) -9/Mines -8/Materials (discovered 3 exits: *Fac x3) History --------- Turn | Location | Event 12 | -11/Scrapyard | Upgraded with Propulsion slot (x2) 12 | -11/Scrapyard | Upgraded with Utility slot (x2) 23 | -11/Scrapyard | Discovered new exit (range 16) 83 | -11/Scrapyard | Entered Materials 316 | -10/Materials | Build established: Mutant 324 | -10/Materials | Discovered new exit (range 3) 366 | -10/Materials | Discovered new exit (range 14) 616 | -10/Materials | Discovered new exit (range 15) 683 | -10/Materials | Build established: Hacker-Mutant 727 | -10/Materials | Learned Storage security intel 766 | -10/Materials | Learned location of 2 exits from Subcaves 797 | -10/Materials | Loaded intel: 11 trap records 832 | -10/Materials | Learned location of 1 exit from Storage 836 | -10/Materials | Learned 4 Recycling zone layouts 837 | -10/Materials | Loaded intel: 23 non-interactive machine locations 898 | -10/Materials | Learned location of Subcaves (-10) 919 | -10/Materials | Learned Storage security intel 973 | -10/Materials | Reached level 2 1065 | -10/Materials | Discovered new exit (range 4) 1193 | -10/Materials | Entered Mines 1231 | -10/Mines | Deemed a non-threat by the Exiles lab entrance 1231 | -10/Mines | Discovered new exit (range 5) 1233 | -10/Mines | Entered Exiles 1234 | -10/Exiles | Identified exit to Mines 1246 | -10/Exiles | Met 8R-AWN 1255 | -10/Exiles | Met EX-HEX 1270 | -10/Exiles | Met EX-BIN 1276 | -10/Exiles | Aligned with FarCom system 1277 | -10/Exiles | Given EX-Vault access code 1289 | -10/Exiles | Opened EX-Vault 1293 | -10/Exiles | Found 0b10 Alert Chip 1304 | -10/Exiles | Warned to stay clear of 0b10 Research branches 1320 | -10/Exiles | Met EX-DEC 1343 | -10/Exiles | Left Exiles lab with 0b10 Alert Chip 1343 | -10/Exiles | Entered Mines 1345 | -9/Mines | Reached level 3 1393 | -9/Mines | Learned Materials stockpile data 1550 | -9/Mines | Discovered new exit (range 16) 1561 | -9/Mines | Entered Materials 1563 | -8/Materials | Reached level 4 1565 | -8/Materials | Upgraded with Utility slot (x1) 1644 | -8/Materials | Build established: Hacker-Scout 1689 | -8/Materials | Core integrity fell below 50% 1736 | -8/Materials | Core integrity fell below 20% 1913 | -8/Materials | Reached level 5 1932 | -8/Materials | Central database locked down 1942 | -8/Materials | Discovered new exit (range 3) 1952 | -8/Materials | Identified exit to Factory 2065 | -8/Materials | Learned Storage trap positions 2100 | -8/Materials | Learned Factory security intel 2126 | -8/Materials | Learned location of Zion (-6) 2143 | -8/Materials | Learned 2 Lower Caves zone layouts 2148 | -8/Materials | Learned location of Extension (-6) 2150 | -8/Materials | Learned Storage trap positions 2156 | -8/Materials | Learned 2 Lower Caves zone layouts 2194 | -8/Materials | Build established: Infiltrator-Scout 2199 | -8/Materials | Learned Storage stockpile data 2356 | -8/Materials | Reached level 6 2528 | -8/Materials | Self-destructed Last Messages --------------- 02480_ H-61 Shepherd destroyed. 02487_ K-01 Serf collects debris. 02493_ Acquired Rnf. Deuterium Engine. 02494_ Acquired 10 matter. 02496_ K-01 Serf collects debris. 02497_ Acquired Arm. Treads. 02497_ K-01 Serf collects debris. 02498_ Acquired 10 matter. 02502_ K-01 Serf collects debris. 02505_ Triggered Alarm Trap. 02505_ Transmission Jammer jams signal. 02513_ Connecting with Terminal... >>Access(Main) Found 3 level access points to Factory: (81,92) (88,22) (5,86) Map updated. >>Access(Branch) No branch access points found. Map ----- +----------------------------------------------------+ | S"###### ######*##??## [[ # ### | | #"""######+##########%##??## [[ #= ! ### | | ##+#"T"#### !!##??## [ # * # | | [ =##??## #[ # [ | | ##??## # + =% | | ##????? # """ " ! | | """"" ##########+##### """ # | | """"" "################# + """ ## | | """"" % ]! ##### # #### """ ## | | ]! ###?????"""" # #### ## | | ]! ##??????"""" + #### ## | | %% ##??????"""" # ######+#### | | ##??# # # # | | ##??############## # # | | ##??####= # # """ # | | ############ ######### # + """ + | | ############ ######### # # """ "" # | | #?????????## # # ?"" """ + # """# | | ####??????## # """ # ?"" """ # # S"# | | ####??????## # "T" # ?"" """ # # # | | ##??????## # # ? # ##"###"+### | | ##??????## # [ !!# / # !%= | | ##??????## + ! ########### !!= | | [##???? ### # ## # | | ##???? ### ####+##### T #########+##### | | ## # ## #####@ """####Y g # | | #######+## + """##??????"""?? # | | ! ! # * """##??????""""? # | | !%% + ##?????""""" # | | !! # """##?## ?""""" # | | #######+## ! # """##?## """ # | | ###### # #### ### """##?## #% | | ######?? ## ##### ### ##?## #= | | ##?? ## ##### ### """############### | | """ ##???## ##?##+### """########### ### | | """??????## # ? ? """### # | | """??????## # ??????? ??## # | | #????## # ??????? ! ""??## ] #[ | | #####????## # ??????? "???## %+% | | #####????## # ??????? ????## """ """ # | | ##????## # ??????? ??????## ???"" """ # | | ##????## # ??????????????????????"" """ # | | ##????## # ??????????????????????######## ! | | ##????## + ??????????????????????########!* | | ###???## ??????????????????????????????## ! | | ###????????????????????????????????????????## | | ##????????????????????????????????????????## | | ###????????????????????????????????????????## | | [ ##?????????????????????????????????????????## | | #####?????????????????????????????????????????## | +----------------------------------------------------+ Best States ------------- Heat Dissipation 61 Energy Generation 21 Energy Capacity 290 Matter Stores 300 Matter Capacity 300 Sight Range 16 Robot Scan Range 6 Terrain Scan Density 10 Jamming Range 12 Resistance: KI 5 Resistance: TH 5 Evasion (%) 54 Targeting Accuracy 8 Recoil Reduction 1 Offensive Hacking 20 Defensive Hacking 5 Item Schematics ----------------- None Robot Schematics ------------------ None Fabricated ------------ Nothing Alien Tech Used ----------------- None Achievements -------------- None Challenges ------------ None RPGLIKE | -11 -10 -10 -10 -9 -8 --------- Run | Yrd Mat Min Exi Min Mat Levels Raised 5 | . 1 . . 1 3 XP Earned 11070 | 3000 1890 500 350 900 4430 XP Spent 10335 | 3000 1410 . . 1225 4700 Upgrades 39 | 6 10 . . 6 17 Propulsion Slot 2 | 2 . . . . . Utility Slot 3 | 2 . . . . 1 Core Integrity 12 | . 2 . . . 10 Heat Dissipation 6 | . 6 . . . . Energy Generation 1 | . . . . 1 . Mass Support 1 | . . . . 1 . Inventory Capacity 2 | . 2 . . . . Sensor Range 3 | . . . . 2 1 Hack Attack % 2 | 1 . . . . 1 Hack Defense % 1 | 1 . . . . . KI Resistance % 1 | . . . . . 1 TH Resistance % 1 | . . . . . 1 TH Damage % 4 | . . . . 2 2 Protomatter Created 553 | . 182 . . 78 293 Integrity Restored 959 | . 305 . . 132 522 Core 876 | . 305 . . 49 522 Parts 83 | . . . . 83 . Protomatter Decayed 149 | . 80 . . 32 37 Game ------ Seed AmuletColdArray Manual? 0 Play Time 00:28:58 Cumulative 43.7 hours Start 2024.09.25 @ 14:56:54 End 2024.09.25 @ 15:29:16 Sessions 1 Manual Loads 0 Difficulty Rogue Special Mode Winter2019/RPGLIKE Game No. 56 Rogue 56 Adventurer 0 Explorer 0 Win Type - Total 1 Types 1/0/0/0/0/0/0/0/0 Lore% 34 Gallery% 47 Achievement% 51 Wizard Run 0 Options --------- Layout 1 ASCII 0 Keyboard 0 Movement Mouse Keybinds 0 Fullscreen 1 Font 20/SmallcapsGlow Map View 54x42 Zoom Use 0% Tactical HUD 1 Map Filters NONE Filters NONE Steam 1 RUN: c06dd3e3-611e-4e5b-bbcb-2c1dbf6d5807